[Event "Titled Tuesday Blitz January 31 Early 2023"]
[White "Hambleton, Aman"]
[Black "Alfaro, William"]
[WhiteFideId "2606577"]
[BlackFideId "6100457"]
[WhiteElo "2420"]
[BlackElo "2134"]
[Result "1-0"]
[Round "02"]
[TimeControl "180+2"]
[Date "2023.01.31"]
[WhiteClock "0:00:14"]
[BlackClock "0:00:35"]

1. d4 {[%clk 0:03:00]}  Nf6 {[%clk 0:02:56]} 2. Bf4 {[%clk 0:02:51]}  g6 {[%clk 0:02:53]} 3. Nc3 {[%clk 0:02:51]}  d5 {[%clk 0:02:52]} 4. e3 {[%clk 0:02:50]}  c6 {[%clk 0:02:48]} 5. Nf3 {[%clk 0:02:33]}  Nbd7 {[%clk 0:02:47]} 6. h3 {[%clk 0:02:13]}  b5 {[%clk 0:02:44]} 7. Bd3 {[%clk 0:01:59]}  Nb6 {[%clk 0:02:44]} 8. Ne5 {[%clk 0:01:56]}  Bb7 {[%clk 0:02:40]} 9. O-O {[%clk 0:01:48]}  Nh5 {[%clk 0:02:38]} 10. Bh2 {[%clk 0:01:44]}  f6 {[%clk 0:02:38]} 11. Nxg6 {[%clk 0:01:42]}  hxg6 {[%clk 0:02:13]} 12. Bxg6+ {[%clk 0:01:40]}  Kd7 {[%clk 0:02:11]} 13. Bxh5 {[%clk 0:01:25]}  e6 {[%clk 0:02:11]} 14. Bf3 {[%clk 0:01:09]}  f5 {[%clk 0:02:06]} 15. Ne2 {[%clk 0:01:08]}  Nc4 {[%clk 0:02:01]} 16. b3 {[%clk 0:01:02]}  Nd6 {[%clk 0:02:00]} 17. Nf4 {[%clk 0:00:55]}  Qg5 {[%clk 0:01:47]} 18. Bg3 {[%clk 0:00:36]}  Nf7 {[%clk 0:01:33]} 19. c4 {[%clk 0:00:24]}  Bd6 {[%clk 0:01:23]} 20. cxb5 {[%clk 0:00:22]}  cxb5 {[%clk 0:01:23]} 21. Rc1 {[%clk 0:00:20]}  Rag8 {[%clk 0:01:14]} 22. Qd3 {[%clk 0:00:18]}  a6 {[%clk 0:01:02]} 23. Rfd1 {[%clk 0:00:15]}  Ba3 {[%clk 0:00:35]} 24. Rc7+ {[%clk 0:00:14]} 1-0


[Site "https://www.chess.com"]

[Event "Titled Tuesday Blitz January 31 Early 2023"]
[White "Ashraf, Artin"]
[Black "Manon-og, Ramon Jr."]
[WhiteFideId "22514805"]
[BlackFideId "5200776"]
[WhiteElo "2314"]
[BlackElo "1999"]
[Result "1/2-1/2"]
[Round "02"]
[TimeControl "180+2"]
[Date "2023.01.31"]
[WhiteClock "0:00:05"]
[BlackClock "0:00:46"]

1. e4 {[%clk 0:02:59]}  c5 {[%clk 0:02:59]} 2. Nf3 {[%clk 0:02:59]}  d6 {[%clk 0:02:55]} 3. d4 {[%clk 0:02:58]}  cxd4 {[%clk 0:02:56]} 4. Nxd4 {[%clk 0:02:59]}  Nf6 {[%clk 0:02:56]} 5. Nc3 {[%clk 0:02:59]}  a6 {[%clk 0:02:57]} 6. Bg5 {[%clk 0:02:58]}  e6 {[%clk 0:02:57]} 7. f4 {[%clk 0:02:57]}  Be7 {[%clk 0:02:57]} 8. Qf3 {[%clk 0:02:41]}  Qc7 {[%clk 0:02:54]} 9. O-O-O {[%clk 0:02:36]}  Nbd7 {[%clk 0:02:54]} 10. g4 {[%clk 0:02:35]}  b5 {[%clk 0:02:54]} 11. Bxf6 {[%clk 0:02:30]}  Nxf6 {[%clk 0:02:50]} 12. g5 {[%clk 0:02:25]}  Nd7 {[%clk 0:02:48]} 13. f5 {[%clk 0:02:24]}  O-O {[%clk 0:02:47]} 14. f6 {[%clk 0:01:51]}  gxf6 {[%clk 0:02:45]} 15. gxf6 {[%clk 0:01:35]}  Nxf6 {[%clk 0:02:42]} 16. Bd3 {[%clk 0:01:34]}  Qc5 {[%clk 0:02:29]} 17. e5 {[%clk 0:01:16]}  dxe5 {[%clk 0:02:26]} 18. Ne4 {[%clk 0:00:59]}  Nxe4 {[%clk 0:02:19]} 19. Qxe4 {[%clk 0:00:49]}  f5 {[%clk 0:02:17]} 20. Rhg1+ {[%clk 0:00:47]}  Kh8 {[%clk 0:02:17]} 21. Qxa8 {[%clk 0:00:48]}  exd4 {[%clk 0:02:16]} 22. Qg2 {[%clk 0:00:44]}  Bf6 {[%clk 0:02:14]} 23. Rdf1 {[%clk 0:00:43]}  Bd7 {[%clk 0:02:05]} 24. Qh3 {[%clk 0:00:28]}  Qe5 {[%clk 0:01:54]} 25. Kb1 {[%clk 0:00:25]}  Bc6 {[%clk 0:01:50]} 26. Re1 {[%clk 0:00:25]}  Qd6 {[%clk 0:01:41]} 27. Rg6 {[%clk 0:00:24]}  Bd5 {[%clk 0:01:34]} 28. Qh6 {[%clk 0:00:18]}  Qe7 {[%clk 0:01:31]} 29. Bxf5 {[%clk 0:00:16]}  Bg7 {[%clk 0:01:16]} 30. Qxh7+ {[%clk 0:00:09]}  Kxh7 {[%clk 0:01:17]} 31. Rgxe6+ {[%clk 0:00:10]}  Rxf5 {[%clk 0:01:16]} 32. Rxe7 {[%clk 0:00:10]}  Kh6 {[%clk 0:01:04]} 33. b3 {[%clk 0:00:10]}  Bf6 {[%clk 0:00:59]} 34. Ra7 {[%clk 0:00:10]}  Rf2 {[%clk 0:00:57]} 35. Rxa6 {[%clk 0:00:10]}  Bf7 {[%clk 0:00:55]} 36. Rb6 {[%clk 0:00:06]}  Bg6 {[%clk 0:00:55]} 37. Ree6 {[%clk 0:00:06]}  Kg7 {[%clk 0:00:47]} 38. Rb7+ {[%clk 0:00:05]}  Kh6 {[%clk 0:00:47]} 39. Rbb6 {[%clk 0:00:05]}  Kg7 {[%clk 0:00:46]} 40. Rb7+ {[%clk 0:00:06]}  Kh6 {[%clk 0:00:46]} 41. Rbb6 {[%clk 0:00:05]} 1/2-1/2


[Site "https://www.chess.com"]

[Event "Titled Tuesday Blitz January 31 Early 2023"]
[White "Hasangatin, Ramil"]
[Black "EREBUNI91"]
[WhiteFideId "4122160"]
[WhiteElo "2457"]
[BlackElo "2542"]
[Result "0-1"]
[Round "02"]
[TimeControl "180+2"]
[Date "2023.01.31"]
[WhiteClock "0:00:01"]
[BlackClock "0:00:04"]

1. e4 {[%clk 0:03:00]}  c5 {[%clk 0:02:53]} 2. Nf3 {[%clk 0:02:59]}  d6 {[%clk 0:02:53]} 3. d4 {[%clk 0:02:59]}  cxd4 {[%clk 0:02:53]} 4. Qxd4 {[%clk 0:03:00]}  Nc6 {[%clk 0:02:50]} 5. Bb5 {[%clk 0:03:00]}  Bd7 {[%clk 0:02:49]} 6. Bxc6 {[%clk 0:03:00]}  Bxc6 {[%clk 0:02:44]} 7. Nc3 {[%clk 0:03:01]}  Nf6 {[%clk 0:02:32]} 8. Bg5 {[%clk 0:02:59]}  e5 {[%clk 0:02:26]} 9. Qd3 {[%clk 0:02:59]}  Be7 {[%clk 0:02:25]} 10. O-O-O {[%clk 0:02:58]}  Qa5 {[%clk 0:02:12]} 11. Kb1 {[%clk 0:02:55]}  Rd8 {[%clk 0:02:07]} 12. Bxf6 {[%clk 0:02:55]}  Bxf6 {[%clk 0:02:06]} 13. Nd5 {[%clk 0:02:52]}  Bxd5 {[%clk 0:02:02]} 14. Qxd5 {[%clk 0:02:52]}  Qb6 {[%clk 0:01:53]} 15. Rd2 {[%clk 0:02:51]}  O-O {[%clk 0:01:48]} 16. Rhd1 {[%clk 0:02:50]}  Rd7 {[%clk 0:01:39]} 17. Qb3 {[%clk 0:02:47]}  Qc6 {[%clk 0:01:36]} 18. Rd5 {[%clk 0:02:46]}  Rc8 {[%clk 0:01:28]} 19. R1d3 {[%clk 0:02:46]}  Rdc7 {[%clk 0:01:21]} 20. c3 {[%clk 0:02:17]}  Be7 {[%clk 0:01:18]} 21. Qb5 {[%clk 0:02:14]}  a6 {[%clk 0:01:14]} 22. Qxc6 {[%clk 0:02:14]}  bxc6 {[%clk 0:01:04]} 23. Ra5 {[%clk 0:02:14]}  f5 {[%clk 0:01:04]} 24. Nd2 {[%clk 0:02:09]}  fxe4 {[%clk 0:01:03]} 25. Nxe4 {[%clk 0:02:09]}  d5 {[%clk 0:01:04]} 26. Nc5 {[%clk 0:02:05]}  e4 {[%clk 0:01:03]} 27. Rd2 {[%clk 0:02:03]}  Bd6 {[%clk 0:00:43]} 28. g3 {[%clk 0:01:48]}  Bxc5 {[%clk 0:00:37]} 29. Rxc5 {[%clk 0:01:47]}  Rf8 {[%clk 0:00:33]} 30. c4 {[%clk 0:01:42]}  Rcf7 {[%clk 0:00:26]} 31. Rxc6 {[%clk 0:01:09]}  Rxf2 {[%clk 0:00:21]} 32. Rxf2 {[%clk 0:01:08]}  Rxf2 {[%clk 0:00:21]} 33. cxd5 {[%clk 0:01:09]}  e3 {[%clk 0:00:20]} 34. Re6 {[%clk 0:01:08]}  e2 {[%clk 0:00:16]} 35. Kc1 {[%clk 0:01:07]}  Rxh2 {[%clk 0:00:14]} 36. d6 {[%clk 0:00:50]}  Kf7 {[%clk 0:00:14]} 37. Re7+ {[%clk 0:00:46]}  Kf6 {[%clk 0:00:13]} 38. Re3 {[%clk 0:00:45]}  Rh1+ {[%clk 0:00:12]} 39. Kd2 {[%clk 0:00:43]}  Rd1+ {[%clk 0:00:12]} 40. Kxe2 {[%clk 0:00:43]}  Rxd6 {[%clk 0:00:12]} 41. Rc3 {[%clk 0:00:36]}  Kg5 {[%clk 0:00:12]} 42. Kf3 {[%clk 0:00:35]}  Rf6+ {[%clk 0:00:11]} 43. Kg2 {[%clk 0:00:32]}  Rd6 {[%clk 0:00:11]} 44. Rc5+ {[%clk 0:00:32]}  Kg4 {[%clk 0:00:11]} 45. Rc4+ {[%clk 0:00:31]}  Kg5 {[%clk 0:00:11]} 46. Rc2 {[%clk 0:00:32]}  Kg4 {[%clk 0:00:11]} 47. b3 {[%clk 0:00:29]}  h5 {[%clk 0:00:09]} 48. Rc4+ {[%clk 0:00:29]}  Kg5 {[%clk 0:00:09]} 49. Ra4 {[%clk 0:00:29]}  Kf5 {[%clk 0:00:06]} 50. Ra5+ {[%clk 0:00:27]}  Kg4 {[%clk 0:00:06]} 51. Ra4+ {[%clk 0:00:27]}  Kf5 {[%clk 0:00:06]} 52. Kf3 {[%clk 0:00:27]}  g5 {[%clk 0:00:06]} 53. Ra5+ {[%clk 0:00:27]}  Kf6 {[%clk 0:00:06]} 54. Ke4 {[%clk 0:00:26]}  Re6+ {[%clk 0:00:06]} 55. Kd4 {[%clk 0:00:26]}  Rd6+ {[%clk 0:00:05]} 56. Kc5 {[%clk 0:00:24]}  Re6 {[%clk 0:00:05]} 57. Kd4 {[%clk 0:00:17]}  Kg6 {[%clk 0:00:06]} 58. Re5 {[%clk 0:00:13]}  Rf6 {[%clk 0:00:05]} 59. Ke4 {[%clk 0:00:09]}  h4 {[%clk 0:00:05]} 60. gxh4 {[%clk 0:00:10]}  gxh4 {[%clk 0:00:05]} 61. Re8 {[%clk 0:00:10]}  Kg5 {[%clk 0:00:05]} 62. Rg8+ {[%clk 0:00:09]}  Kh5 {[%clk 0:00:05]} 63. b4 {[%clk 0:00:06]}  h3 {[%clk 0:00:05]} 64. Rh8+ {[%clk 0:00:06]}  Kg4 {[%clk 0:00:05]} 65. Kd5 {[%clk 0:00:04]}  Rf5+ {[%clk 0:00:04]} 66. Ke4 {[%clk 0:00:04]}  Rh5 {[%clk 0:00:05]} 67. Rg8+ {[%clk 0:00:04]}  Kh4 {[%clk 0:00:04]} 68. Rg1 {[%clk 0:00:01]}  h2 {[%clk 0:00:04]} 69. Rh1 {[%clk 0:00:01]}  Kg3 {[%clk 0:00:05]} 70. Kd4 {[%clk 0:00:02]}  Rh4+ {[%clk 0:00:05]} 71. Kc5 {[%clk 0:00:01]}  Rh5+ {[%clk 0:00:04]} 0-1


[Site "https://www.chess.com"]

[Event "Titled Tuesday Blitz January 31 Early 2023"]
[White "Ivanova, Karina"]
[Black "Abdyzhapar, Asylbek"]
[WhiteFideId "24139750"]
[BlackFideId "13800337"]
[WhiteElo "2085"]
[BlackElo "2293"]
[Result "0-1"]
[Round "02"]
[TimeControl "180+2"]
[Date "2023.01.31"]
[WhiteClock "0:00:04"]
[BlackClock "0:01:24"]

1. d4 {[%clk 0:02:57]}  Nf6 {[%clk 0:02:59]} 2. Nf3 {[%clk 0:02:57]}  g6 {[%clk 0:02:59]} 3. g3 {[%clk 0:02:57]}  Bg7 {[%clk 0:02:59]} 4. Bg2 {[%clk 0:02:57]}  O-O {[%clk 0:03:00]} 5. O-O {[%clk 0:02:56]}  d6 {[%clk 0:03:00]} 6. c4 {[%clk 0:02:55]}  Nc6 {[%clk 0:02:59]} 7. Nc3 {[%clk 0:02:54]}  a6 {[%clk 0:02:59]} 8. Qd3 {[%clk 0:02:51]}  Rb8 {[%clk 0:02:56]} 9. e4 {[%clk 0:02:41]}  Bg4 {[%clk 0:02:55]} 10. Be3 {[%clk 0:02:38]}  e5 {[%clk 0:02:54]} 11. d5 {[%clk 0:02:36]}  Ne7 {[%clk 0:02:53]} 12. Nd2 {[%clk 0:02:27]}  Qd7 {[%clk 0:02:52]} 13. f3 {[%clk 0:02:21]}  Bh3 {[%clk 0:02:51]} 14. b4 {[%clk 0:02:15]}  Bxg2 {[%clk 0:02:50]} 15. Kxg2 {[%clk 0:02:15]}  c6 {[%clk 0:02:48]} 16. dxc6 {[%clk 0:02:12]}  Nxc6 {[%clk 0:02:46]} 17. a3 {[%clk 0:02:11]}  Rbc8 {[%clk 0:02:43]} 18. Rfd1 {[%clk 0:01:59]}  Nd4 {[%clk 0:02:41]} 19. Ne2 {[%clk 0:01:37]}  Nxe2 {[%clk 0:02:40]} 20. Qxe2 {[%clk 0:01:36]}  b5 {[%clk 0:02:40]} 21. Rac1 {[%clk 0:01:32]}  h5 {[%clk 0:02:34]} 22. h4 {[%clk 0:01:28]}  Rc7 {[%clk 0:02:30]} 23. cxb5 {[%clk 0:01:24]}  Rxc1 {[%clk 0:02:29]} 24. Rxc1 {[%clk 0:01:24]}  axb5 {[%clk 0:02:30]} 25. Qd3 {[%clk 0:01:22]}  d5 {[%clk 0:02:30]} 26. Rc5 {[%clk 0:01:13]}  dxe4 {[%clk 0:02:12]} 27. Qxd7 {[%clk 0:01:13]}  exf3+ {[%clk 0:02:11]} 28. Nxf3 {[%clk 0:01:12]}  Nxd7 {[%clk 0:02:12]} 29. Rxb5 {[%clk 0:01:12]}  Ra8 {[%clk 0:02:09]} 30. Bc1 {[%clk 0:00:57]}  e4 {[%clk 0:02:07]} 31. Nd2 {[%clk 0:00:51]}  Rc8 {[%clk 0:02:03]} 32. Rd5 {[%clk 0:00:29]}  Rxc1 {[%clk 0:01:56]} 33. Rxd7 {[%clk 0:00:29]}  e3 {[%clk 0:01:56]} 34. Nf3 {[%clk 0:00:25]}  Rc2+ {[%clk 0:01:50]} 35. Kh3 {[%clk 0:00:15]}  e2 {[%clk 0:01:46]} 36. Re7 {[%clk 0:00:15]}  Bc3 {[%clk 0:01:46]} 37. Re8+ {[%clk 0:00:11]}  Kg7 {[%clk 0:01:46]} 38. b5 {[%clk 0:00:11]}  Rb2 {[%clk 0:01:45]} 39. a4 {[%clk 0:00:11]}  f6 {[%clk 0:01:42]} 40. b6 {[%clk 0:00:10]}  g5 {[%clk 0:01:40]} 41. hxg5 {[%clk 0:00:09]}  fxg5 {[%clk 0:01:40]} 42. g4 {[%clk 0:00:09]}  h4 {[%clk 0:01:35]} 43. b7 {[%clk 0:00:08]}  Rxb7 {[%clk 0:01:32]} 44. Rxe2 {[%clk 0:00:08]}  Bf6 {[%clk 0:01:32]} 45. Re3 {[%clk 0:00:06]}  Rb4 {[%clk 0:01:25]} 46. Ra3 {[%clk 0:00:06]}  Bb2 {[%clk 0:01:24]} 47. Ra2 {[%clk 0:00:05]}  Rb3 {[%clk 0:01:24]} 48. Kg2 {[%clk 0:00:05]}  h3+ {[%clk 0:01:24]} 49. Kg3 {[%clk 0:00:03]}  Be5+ {[%clk 0:01:24]} 50. Kxh3 {[%clk 0:00:02]}  Rxf3+ {[%clk 0:01:23]} 51. Kg2 {[%clk 0:00:03]}  Rg3+ {[%clk 0:01:23]} 52. Kf2 {[%clk 0:00:04]}  Rxg4 {[%clk 0:01:23]} 53. a5 {[%clk 0:00:04]}  Bd4+ {[%clk 0:01:23]} 54. Kf3 {[%clk 0:00:04]}  Rf4+ {[%clk 0:01:23]} 55. Kg3 {[%clk 0:00:04]}  Ba7 {[%clk 0:01:24]} 56. Rb2 {[%clk 0:00:04]}  Kg6 {[%clk 0:01:24]} 57. Rb7 {[%clk 0:00:04]}  Rf7 {[%clk 0:01:24]} 58. Rxf7 {[%clk 0:00:03]}  Kxf7 {[%clk 0:01:24]} 59. Kg4 {[%clk 0:00:03]}  Kg6 {[%clk 0:01:24]} 60. a6 {[%clk 0:00:04]}  Kf6 {[%clk 0:01:24]} 0-1


[Site "https://www.chess.com"]

[Event "Titled Tuesday Blitz January 31 Early 2023"]
[White "Winkels, Marcel"]
[Black "Begmuratov, Khumoyun"]
[WhiteFideId "1003887"]
[BlackFideId "14210207"]
[WhiteElo "1960"]
[BlackElo "2387"]
[Result "0-1"]
[Round "02"]
[TimeControl "180+2"]
[Date "2023.01.31"]
[WhiteClock "0:00:05"]
[BlackClock "0:00:13"]

1. e4 {[%clk 0:03:00]}  e6 {[%clk 0:02:59]} 2. d4 {[%clk 0:02:59]}  d5 {[%clk 0:02:59]} 3. Nc3 {[%clk 0:02:58]}  Nf6 {[%clk 0:02:58]} 4. Bg5 {[%clk 0:02:56]}  Be7 {[%clk 0:02:58]} 5. e5 {[%clk 0:02:56]}  Nfd7 {[%clk 0:02:58]} 6. h4 {[%clk 0:02:56]}  a6 {[%clk 0:02:57]} 7. Qg4 {[%clk 0:02:50]}  h5 {[%clk 0:02:53]} 8. Qg3 {[%clk 0:02:42]}  Bxg5 {[%clk 0:02:41]} 9. hxg5 {[%clk 0:02:41]}  g6 {[%clk 0:02:42]} 10. O-O-O {[%clk 0:02:39]}  c5 {[%clk 0:02:41]} 11. Nf3 {[%clk 0:02:19]}  Nc6 {[%clk 0:02:38]} 12. Kb1 {[%clk 0:02:05]}  b5 {[%clk 0:02:35]} 13. dxc5 {[%clk 0:02:03]}  Nxc5 {[%clk 0:02:34]} 14. Nd4 {[%clk 0:02:03]}  Nxd4 {[%clk 0:02:26]} 15. Rxd4 {[%clk 0:02:01]}  Qc7 {[%clk 0:02:25]} 16. f4 {[%clk 0:01:50]}  Bd7 {[%clk 0:02:18]} 17. f5 {[%clk 0:01:35]}  gxf5 {[%clk 0:02:10]} 18. g6 {[%clk 0:01:34]}  O-O-O {[%clk 0:02:05]} 19. gxf7 {[%clk 0:01:33]}  Bc6 {[%clk 0:01:53]} 20. Rdh4 {[%clk 0:01:25]}  Qxf7 {[%clk 0:01:48]} 21. Be2 {[%clk 0:01:14]}  d4 {[%clk 0:01:42]} 22. Nd1 {[%clk 0:01:12]}  Ne4 {[%clk 0:01:29]} 23. Qa3 {[%clk 0:01:08]}  Kb7 {[%clk 0:01:21]} 24. Rxh5 {[%clk 0:01:06]}  Rxh5 {[%clk 0:01:20]} 25. Rxh5 {[%clk 0:01:05]}  Rg8 {[%clk 0:01:14]} 26. Rh2 {[%clk 0:01:03]}  Qg7 {[%clk 0:01:05]} 27. Bf3 {[%clk 0:00:59]}  Qxe5 {[%clk 0:01:05]} 28. Rh7+ {[%clk 0:00:54]}  Rg7 {[%clk 0:01:04]} 29. Rh8 {[%clk 0:00:48]}  Nd2+ {[%clk 0:00:42]} 30. Kc1 {[%clk 0:00:46]}  Nxf3 {[%clk 0:00:35]} 31. gxf3 {[%clk 0:00:30]}  Qf4+ {[%clk 0:00:34]} 32. Kb1 {[%clk 0:00:29]}  Qxf3 {[%clk 0:00:27]} 33. Kc1 {[%clk 0:00:17]}  Qxa3 {[%clk 0:00:21]} 34. bxa3 {[%clk 0:00:13]}  Rg1 {[%clk 0:00:21]} 35. Kd2 {[%clk 0:00:12]}  e5 {[%clk 0:00:20]} 36. Rh7+ {[%clk 0:00:12]}  Kb6 {[%clk 0:00:20]} 37. Nf2 {[%clk 0:00:12]}  e4 {[%clk 0:00:21]} 38. Nh3 {[%clk 0:00:11]}  e3+ {[%clk 0:00:19]} 39. Ke2 {[%clk 0:00:11]}  Rg2+ {[%clk 0:00:19]} 40. Kf1 {[%clk 0:00:10]}  Rxc2 {[%clk 0:00:18]} 41. Nf4 {[%clk 0:00:09]}  Bf3 {[%clk 0:00:14]} 42. Rh6+ {[%clk 0:00:05]}  Ka5 {[%clk 0:00:13]} 43. Rf6 {[%clk 0:00:05]}  Rc1# {[%clk 0:00:13]} 0-1


[Site "https://www.chess.com"]

[Event "Titled Tuesday Blitz January 31 Early 2023"]
[White "Milikow, Yoav"]
[Black "Aung Thant Zin"]
[WhiteFideId "2822237"]
[BlackFideId "13000063"]
[WhiteElo "2394"]
[BlackElo "2268"]
[Result "1-0"]
[Round "02"]
[TimeControl "180+2"]
[Date "2023.01.31"]
[WhiteClock "0:00:15"]
[BlackClock "0:00:01"]

1. c4 {[%clk 0:03:00]}  e5 {[%clk 0:02:58]} 2. Nc3 {[%clk 0:03:00]}  Nf6 {[%clk 0:02:58]} 3. Nf3 {[%clk 0:02:59]}  Nc6 {[%clk 0:02:57]} 4. e4 {[%clk 0:02:59]}  Bb4 {[%clk 0:02:46]} 5. d3 {[%clk 0:02:57]}  Bxc3+ {[%clk 0:02:46]} 6. bxc3 {[%clk 0:02:58]}  h6 {[%clk 0:02:46]} 7. Be2 {[%clk 0:02:58]}  d6 {[%clk 0:02:46]} 8. O-O {[%clk 0:02:57]}  O-O {[%clk 0:02:46]} 9. Ne1 {[%clk 0:02:56]}  Ne7 {[%clk 0:02:40]} 10. f4 {[%clk 0:02:52]}  exf4 {[%clk 0:02:32]} 11. Bxf4 {[%clk 0:02:53]}  Ng6 {[%clk 0:02:33]} 12. Be3 {[%clk 0:02:52]}  Be6 {[%clk 0:02:19]} 13. Nc2 {[%clk 0:02:50]}  c5 {[%clk 0:02:13]} 14. Qe1 {[%clk 0:02:44]}  Qd7 {[%clk 0:02:06]} 15. Rxf6 {[%clk 0:02:34]}  gxf6 {[%clk 0:02:05]} 16. Bxh6 {[%clk 0:02:35]}  Rfe8 {[%clk 0:02:01]} 17. Ne3 {[%clk 0:02:34]}  Kh7 {[%clk 0:01:57]} 18. Qd2 {[%clk 0:02:32]}  Rh8 {[%clk 0:01:29]} 19. Rf1 {[%clk 0:02:27]}  Kg8 {[%clk 0:01:23]} 20. Nf5 {[%clk 0:02:22]}  Bxf5 {[%clk 0:01:17]} 21. Rxf5 {[%clk 0:02:23]}  Qe7 {[%clk 0:01:12]} 22. g3 {[%clk 0:02:06]}  Rh7 {[%clk 0:01:08]} 23. Be3 {[%clk 0:01:58]}  Kh8 {[%clk 0:01:02]} 24. Qe1 {[%clk 0:01:51]}  Nf8 {[%clk 0:00:45]} 25. Qf2 {[%clk 0:01:30]}  Nd7 {[%clk 0:00:45]} 26. Rd5 {[%clk 0:01:25]}  Rg8 {[%clk 0:00:42]} 27. Bf4 {[%clk 0:01:23]}  Ne5 {[%clk 0:00:40]} 28. Kh1 {[%clk 0:01:04]}  b6 {[%clk 0:00:37]} 29. h4 {[%clk 0:00:49]}  Qe6 {[%clk 0:00:31]} 30. Kh2 {[%clk 0:00:45]}  Rg6 {[%clk 0:00:19]} 31. d4 {[%clk 0:00:29]}  Ng4+ {[%clk 0:00:12]} 32. Bxg4 {[%clk 0:00:28]}  Qxg4 {[%clk 0:00:12]} 33. Rxd6 {[%clk 0:00:23]}  Kg7 {[%clk 0:00:09]} 34. e5 {[%clk 0:00:19]}  f5 {[%clk 0:00:08]} 35. d5 {[%clk 0:00:18]}  Qh5 {[%clk 0:00:01]} 36. e6 {[%clk 0:00:15]} 1-0


[Site "https://www.chess.com"]

[Event "Titled Tuesday Blitz January 31 Early 2023"]
[White "Osiecki, Stanislaw"]
[Black "Agasarov, Benik"]
[WhiteFideId "1102990"]
[BlackFideId "13314823"]
[WhiteElo "2055"]
[BlackElo "2235"]
[Result "0-1"]
[Round "02"]
[TimeControl "180+2"]
[Date "2023.01.31"]
[WhiteClock "0:01:26"]
[BlackClock "0:01:27"]

1. e4 {[%clk 0:03:00]}  c5 {[%clk 0:02:59]} 2. c3 {[%clk 0:02:59]}  Nf6 {[%clk 0:02:57]} 3. e5 {[%clk 0:02:58]}  Nd5 {[%clk 0:02:57]} 4. d4 {[%clk 0:02:58]}  cxd4 {[%clk 0:02:55]} 5. Nf3 {[%clk 0:02:58]}  Nc6 {[%clk 0:02:55]} 6. cxd4 {[%clk 0:02:59]}  d6 {[%clk 0:02:55]} 7. a3 {[%clk 0:02:59]}  Bg4 {[%clk 0:02:46]} 8. Be2 {[%clk 0:02:57]}  dxe5 {[%clk 0:02:44]} 9. dxe5 {[%clk 0:02:55]}  e6 {[%clk 0:02:44]} 10. O-O {[%clk 0:02:42]}  Be7 {[%clk 0:02:41]} 11. h3 {[%clk 0:02:40]}  Bxf3 {[%clk 0:02:31]} 12. Bxf3 {[%clk 0:02:40]}  Nxe5 {[%clk 0:02:31]} 13. Qa4+ {[%clk 0:02:33]}  Qd7 {[%clk 0:02:26]} 14. Qxd7+ {[%clk 0:02:31]}  Nxd7 {[%clk 0:02:21]} 15. Bxd5 {[%clk 0:02:29]}  exd5 {[%clk 0:02:21]} 16. Rd1 {[%clk 0:02:30]}  Nf6 {[%clk 0:02:17]} 17. Nc3 {[%clk 0:02:29]}  O-O-O {[%clk 0:02:03]} 18. Be3 {[%clk 0:02:27]}  b6 {[%clk 0:01:58]} 19. Bd4 {[%clk 0:02:27]}  Kb7 {[%clk 0:01:56]} 20. Bxf6 {[%clk 0:02:26]}  Bxf6 {[%clk 0:01:57]} 21. Rxd5 {[%clk 0:02:13]}  Rxd5 {[%clk 0:01:52]} 22. Nxd5 {[%clk 0:02:12]}  Bxb2 {[%clk 0:01:52]} 23. Ra2 {[%clk 0:02:08]}  Bd4 {[%clk 0:01:46]} 24. Rd2 {[%clk 0:02:01]}  Bc5 {[%clk 0:01:44]} 25. a4 {[%clk 0:02:00]}  Rd8 {[%clk 0:01:44]} 26. Rd3 {[%clk 0:02:00]}  Rd6 {[%clk 0:01:36]} 27. Kh1 {[%clk 0:01:53]}  Ka6 {[%clk 0:01:33]} 28. f4 {[%clk 0:01:48]}  Ka5 {[%clk 0:01:33]} 29. g4 {[%clk 0:01:41]}  Kxa4 {[%clk 0:01:31]} 30. f5 {[%clk 0:01:41]}  Kb5 {[%clk 0:01:28]} 31. Kg2 {[%clk 0:01:26]}  Kc4 {[%clk 0:01:27]} 0-1


[Site "https://www.chess.com"]